[Event "European School-ch 2019"]
[Site "Mamaia"]
[Date "2019.06.04"]
[Round "5.47"]
[White "Bendik, Margarita"]
[Black "Arora, Tashika"]
[Result "0-1"]
[ECO "C42"]
[WhiteElo "1077"]
[BlackElo "1471"]
[Annotator "NA RC"]
[PlyCount "72"]
[EventDate "2019.05.31"]
[EventType "swiss"]
[EventCountry "ROU"]
[SourceTitle "playchess.com"]
[Source "ChessBase"]
[SourceQuality "1"]
[TimeControl "40/5400+30:1800+30"]

1. e4 {[%emt 0:00:00]} e5 {[%emt 0:00:00]} 2. Nf3 {[%emt 0:00:00]} Nf6 {[%emt 0:00:00]} 3. Nxe5 {[%emt 0:00:00]} d6 {[%emt 0:00:00]} 4. Nf3 {[%emt 0:00:06]} Nxe4 {[%emt 0:00:00]} 5. Nc3 {[%emt 0:00:06]} Nxc3 {[%emt 0:00:16]} 6. dxc3 {[%emt 0:00:11]} Be7 {[%emt 0:00:13]} 7. Bf4 {[%emt 0:00:32]} O-O {[%emt 0:00:46]} 8. Qd2 {[%emt 0:00:22]} Nc6 {[%emt 0:02:58]} 9. O-O-O {[%emt 0:01:05]} Be6 {[%emt 0:01:54]} 10. Kb1 {[%emt 0:00:28]} a6 {[%emt 0:01:50]} 11. Bd3 {[%emt 0:02:05]} Qd7 {[%emt 0:03:51]} 12. Rhe1 {[%emt 0:01:59]} Rfe8 {[%emt 0:03:11]} 13. Ng5 {[%emt 0:04:59]} Bf5 {[%emt 0:03:30]} 14. Bc4 {[%emt 0:02:04]} Bxg5 {[%emt 0:07:24]} 15. Bxg5 {[%emt 0:00:27]} Re5 {[%emt 0:10:11]} 16. f4 {[%emt 0:02:35]} Ree8 {[%emt 0:02:46]} 17. h3 {[%emt 0:03:09]} Be4 {[%emt 0:05:10]} 18. g4 {[%emt 0:01:09]} Na5 {[%emt 0:12:13]} 19. Bf1 {[%emt 0:04:54]} Qc6 {[%emt 0:03:23]} 20. f5 {[%emt 0:04:05]} Bf3 {[%emt 0:02:00]} 21. Rxe8+ {[%emt 0:04:00]} Rxe8 {[%emt 0:00:14]} 22. Re1 {[%emt 0:00:24]} Be4 {[%emt 0:03:31]} 23. b3 {[%emt 0:05:42]} b5 {[%emt 0:02:53]} 24. h4 {[%emt 0:01:28]} Nb7 {[%emt 0:04:53]} 25. h5 {[%emt 0:02:57]} h6 {[%emt 0:02:03]} 26. Bh4 {[%emt 0:02:41]} d5 {[%emt 0:01:17]} 27. f6 {[%emt 0:00:58]} Qe6 {[%emt 0:05:14]} 28. fxg7 {[%emt 0:02:55]} Kxg7 {[%emt 0:01:48]} 29. g5 {[%emt 0:07:12]} Nd6 {[%emt 0:02:38]} 30. Qd4+ {[%emt 0:03:04]} Kg8 {[%emt 0:02:05]} 31. gxh6 {[%emt 0:01:18]} Qxh6 {[%emt 0:00:31]} 32. Bh3 {[%emt 0:02:25]} Qxh5 {[%emt 0:03:20]} 33. Rg1+ {[%emt 0:01:30]} Bg6 {[%emt 0:00:21]} 34. Rg5 {[%emt 0:04:18]} Qe2 {[%emt 0:00:49]} 35. Qxd5 {[%emt 0:00:48]} Qxc2+ {[%emt 0:00:19]} 36. Ka1 {[%emt 0:00:18]} Qb1# {[%emt 0:00:08]} 0-1

[Event "European School-ch 2019"]
[Site "Mamaia"]
[Date "2019.06.04"]
[Round "5.48"]
[White "Janouskova, Adela"]
[Black "Mikhailina, Olga"]
[Result "0-1"]
[ECO "B22"]
[WhiteElo "1330"]
[BlackElo "1338"]
[Annotator "NA RC"]
[PlyCount "112"]
[EventDate "2019.05.31"]
[EventType "swiss"]
[EventCountry "ROU"]
[SourceTitle "playchess.com"]
[Source "ChessBase"]
[SourceQuality "1"]
[TimeControl "40/5400+30:1800+30"]

1. e4 {[%emt 0:00:00]} c5 {[%emt 0:00:00]} 2. c3 {[%emt 0:00:14]} Nf6 {[%emt 0:00:25]} 3. e5 {[%emt 0:00:16]} Nd5 {[%emt 0:00:14]} 4. d4 {[%emt 0:00:13]} cxd4 {[%emt 0:00:19]} 5. cxd4 {[%emt 0:00:07]} d6 {[%emt 0:00:46]} 6. exd6 {[%emt 0:01:33]} Qxd6 {[%emt 0:03:23]} 7. Nc3 {[%emt 0:05:35]} Bf5 {[%emt 0:05:17]} 8. Nxd5 {[%emt 0:09:56]} Qxd5 {[%emt 0:00:36]} 9. Nf3 {[%emt 0:01:18]} Nc6 {[%emt 0:04:37]} 10. Be2 {[%emt 0:02:07]} e6 {[%emt 0:04:21]} 11. O-O {[%emt 0:00:40]} Be7 {[%emt 0:00:54]} 12. Be3 {[%emt 0:01:42]} O-O {[%emt 0:03:04]} 13. Qd2 {[%emt 0:03:15]} Rfd8 {[%emt 0:03:06]} 14. Rfd1 {[%emt 0:01:08]} Rac8 {[%emt 0:02:50]} 15. a3 {[%emt 0:02:07]} Na5 {[%emt 0:03:59]} 16. Qe1 {[%emt 0:09:26]} Bc2 {[%emt 0:11:44]} 17. Rdc1 {[%emt 0:06:47]} Nb3 {[%emt 0:01:04]} 18. Ne5 {[%emt 0:02:47]} Nxa1 {[%emt 0:11:01]} 19. Rxa1 {[%emt 0:00:49]} Bf6 {[%emt 0:07:11]} 20. Nf3 {[%emt 0:00:54]} Qb3 {[%emt 0:01:55]} 21. Bc1 {[%emt 0:07:47]} Bxd4 {[%emt 0:03:56]} 22. Nxd4 {[%emt 0:00:12]} Rxd4 23. Be3 {[%emt 0:02:09]} Rd7 {[%emt 0:03:13]} 24. Bc1 {[%emt 0:02:47]} Rcd8 {[%emt 0:02:44]} 25. Be3 {[%emt 0:03:23]} Bd1 {[%emt 0:04:26]} 26. h3 {[%emt 0:01:21]} Bxe2 {[%emt 0:00:56]} 27. Qxe2 {[%emt 0:00:06]} Rd1+ {[%emt 0:00:40]} 28. Rxd1 {[%emt 0:00:07]} Qxd1+ {[%emt 0:00:13]} 29. Qxd1 {[%emt 0:00:07]} Rxd1+ {[%emt 0:00:04]} 30. Kh2 {[%emt 0:00:06]} Rb1 {[%emt 0:00:29]} 31. Bxa7 {[%emt 0:00:18]} Rxb2 {[%emt 0:00:34]} 32. f3 {[%emt 0:00:53]} f6 {[%emt 0:00:44]} 33. Bc5 {[%emt 0:00:09]} Kf7 {[%emt 0:00:35]} 34. Kg3 {[%emt 0:00:10]} Ke8 {[%emt 0:01:21]} 35. Bb4 {[%emt 0:00:12]} Rxb4 {[%emt 0:02:27]} 36. axb4 {[%emt 0:00:10]} Kd7 {[%emt 0:00:05]} 37. Kf4 {[%emt 0:00:20]} Kc6 {[%emt 0:00:12]} 38. Ke4 {[%emt 0:00:10]} Kb5 {[%emt 0:00:19]} 39. Kd4 {[%emt 0:01:18]} Kxb4 {[%emt 0:00:12]} 40. g4 {[%emt 0:00:00]} Ka4 {[%emt 0:00:00]} 41. Kc5 {[%emt 0:00:35]} b5 {[%emt 0:01:08]} 42. Kd6 {[%emt 0:00:05]} b4 {[%emt 0:01:44]} 43. Kxe6 {[%emt 0:00:12]} b3 {[%emt 0:00:11]} 44. Kf7 {[%emt 0:00:04]} b2 {[%emt 0:00:16]} 45. Kxg7 {[%emt 0:00:09]} b1=Q {[%emt 0:00:06]} 46. Kxf6 {[%emt 0:00:11]} Qg6+ {[%emt 0:02:37]} 47. Ke5 {[%emt 0:00:11]} Qh6 {[%emt 0:00:36]} 48. f4 {[%emt 0:01:47]} Qxh3 {[%emt 0:00:40]} 49. g5 {[%emt 0:00:32]} Qh5 {[%emt 0:01:06]} 50. Kf6 {[%emt 0:01:55]} Qg6+ {[%emt 0:00:20]} 51. Ke5 {[%emt 0:00:19]} Kb5 {[%emt 0:00:32]} 52. f5 {[%emt 0:00:09]} Qxg5 {[%emt 0:00:14]} 53. Ke6 {[%emt 0:00:06]} h5 {[%emt 0:00:19]} 54. f6 {[%emt 0:00:13]} Qxf6+ {[%emt 0:00:10]} 55. Kxf6 {[%emt 0:00:20]} h4 {[%emt 0:00:10]} 56. Kg5 {[%emt 0:00:07]} h3 0-1

[Event "European School-ch 2019"]
[Site "Mamaia"]
[Date "2019.06.04"]
[Round "5.49"]
[White "Aydin, Gulenay"]
[Black "Karaivanova, Petya"]
[Result "1-0"]
[ECO "C49"]
[WhiteElo "1967"]
[BlackElo "1688"]
[Annotator "NA RC"]
[PlyCount "79"]
[EventDate "2019.05.31"]
[EventType "swiss"]
[EventCountry "ROU"]
[SourceTitle "playchess.com"]
[Source "ChessBase"]
[SourceQuality "1"]
[TimeControl "40/5400+30:1800+30"]

1. e4 {[%emt 0:00:00]} e5 {[%emt 0:00:00]} 2. Nf3 {[%emt 0:00:00]} Nc6 {[%emt 0:00:00]} 3. Nc3 {[%emt 0:00:00]} Nf6 {[%emt 0:00:00]} 4. Bb5 {[%emt 0:00:00]} Bb4 {[%emt 0:00:17]} 5. O-O {[%emt 0:00:00]} O-O {[%emt 0:00:14]} 6. d3 {[%emt 0:00:05]} Bxc3 {[%emt 0:00:21]} 7. bxc3 {[%emt 0:00:02]} d6 {[%emt 0:00:15]} 8. Bg5 {[%emt 0:00:25]} h6 {[%emt 0:00:21]} 9. Be3 {[%emt 0:20:00]} Ne7 {[%emt 0:04:45]} 10. Nh4 {[%emt 0:15:09]} a6 {[%emt 0:07:43]} 11. Bc4 {[%emt 0:03:10]} b5 {[%emt 0:00:11]} 12. Bb3 {[%emt 0:00:13]} c5 {[%emt 0:00:10]} 13. a4 {[%emt 0:09:05]} Rb8 {[%emt 0:06:24]} 14. Qf3 {[%emt 0:09:50]} Kh7 {[%emt 0:15:16]} 15. axb5 {[%emt 0:06:45]} axb5 {[%emt 0:00:38]} 16. Ra7 {[%emt 0:02:57]} Bd7 {[%emt 0:06:24]} 17. h3 {[%emt 0:04:05]} Qc8 {[%emt 0:11:56]} 18. g4 {[%emt 0:08:31]} Ng6 {[%emt 0:07:55]} 19. Nf5 {[%emt 0:01:59]} Qd8 {[%emt 0:06:32]} 20. Kh2 {[%emt 0:04:19]} Nh8 {[%emt 0:10:03]} 21. g5 {[%emt 0:08:43]} Ng8 {[%emt 0:04:13]} 22. Rg1 {[%emt 0:01:53]} g6 {[%emt 0:06:16]} 23. Nxd6 {[%emt 0:03:08]} c4 {[%emt 0:01:45]} 24. dxc4 {[%emt 0:00:41]} Be6 {[%emt 0:02:23]} 25. c5 {[%emt 0:00:37]} Ra8 {[%emt 0:01:31]} 26. Rb7 {[%emt 0:00:38]} Ne7 {[%emt 0:01:37]} 27. gxh6 {[%emt 0:00:33]} Rb8 {[%emt 0:00:39]} 28. Qf6 {[%emt 0:00:34]} Nf5 {[%emt 0:01:02]} 29. Qxd8 {[%emt 0:00:05]} Rfxd8 {[%emt 0:00:11]} 30. exf5 {[%emt 0:00:22]} Rxb7 {[%emt 0:00:35]} 31. Nxb7 {[%emt 0:00:11]} Rb8 {[%emt 0:00:35]} 32. fxe6 {[%emt 0:00:29]} Rxb7 {[%emt 0:00:05]} 33. c6 {[%emt 0:00:11]} Rc7 {[%emt 0:00:04]} 34. Bb6 {[%emt 0:00:20]} Rxc6 {[%emt 0:00:15]} 35. e7 {[%emt 0:00:04]} Rc8 {[%emt 0:00:22]} 36. Bd8 {[%emt 0:00:06]} Rxc3 {[%emt 0:00:34]} 37. e8=Q {[%emt 0:00:17]} Rf3 {[%emt 0:00:10]} 38. Kg2 {[%emt 0:00:43]} Rf5 {[%emt 0:00:20]} 39. Qf8 {[%emt 0:00:19]} Rh5 {[%emt 0:00:10]} 40. Qg7# {[%emt 0:00:00]} 1-0

[Event "European School-ch 2019"]
[Site "Mamaia"]
[Date "2019.06.04"]
[Round "5.50"]
[White "Putinceva, Marina"]
[Black "Petricenco, Ana"]
[Result "1/2-1/2"]
[ECO "B10"]
[WhiteElo "1471"]
[BlackElo "1484"]
[Annotator "NA RC"]
[PlyCount "108"]
[EventDate "2019.05.31"]
[EventType "swiss"]
[EventCountry "ROU"]
[SourceTitle "playchess.com"]
[Source "ChessBase"]
[SourceQuality "1"]
[TimeControl "40/5400+30:1800+30"]

1. e4 {[%emt 0:00:00]} c6 {[%emt 0:00:00]} 2. Nf3 {[%emt 0:00:00]} d5 {[%emt 0:00:00]} 3. exd5 {[%emt 0:00:00]} cxd5 {[%emt 0:00:00]} 4. Ne5 {[%emt 0:00:04]} Nc6 {[%emt 0:00:00]} 5. d4 {[%emt 0:00:33]} e6 {[%emt 0:00:23]} 6. Bb5 {[%emt 0:00:51]} Bd7 {[%emt 0:00:15]} 7. Nxd7 {[%emt 0:00:37]} Qxd7 {[%emt 0:00:08]} 8. c3 {[%emt 0:01:05]} a6 {[%emt 0:00:38]} 9. Bd3 {[%emt 0:00:37]} Bd6 {[%emt 0:00:44]} 10. O-O {[%emt 0:01:06]} Nf6 {[%emt 0:00:19]} 11. Nd2 {[%emt 0:01:28]} O-O {[%emt 0:00:28]} 12. Re1 {[%emt 0:01:13]} Qc7 {[%emt 0:00:29]} 13. Nf3 {[%emt 0:04:28]} b5 {[%emt 0:03:04]} 14. a3 {[%emt 0:01:17]} Rfb8 {[%emt 0:02:26]} 15. Qe2 {[%emt 0:02:05]} Nd7 {[%emt 0:01:05]} 16. Bg5 {[%emt 0:20:55]} Na5 {[%emt 0:04:09]} 17. Ne5 {[%emt 0:09:19]} Nxe5 {[%emt 0:07:01]} 18. dxe5 {[%emt 0:00:11]} Be7 {[%emt 0:00:32]} 19. Bxe7 {[%emt 0:11:22]} Qxe7 {[%emt 0:00:37]} 20. Qh5 {[%emt 0:01:04]} g6 {[%emt 0:01:18]} 21. Qg4 {[%emt 0:04:53]} Rc8 {[%emt 0:02:23]} 22. Qb4 {[%emt 0:02:26]} Qc7 {[%emt 0:05:29]} 23. a4 {[%emt 0:05:32]} Nc4 {[%emt 0:04:29]} 24. Bxc4 {[%emt 0:04:30]} bxc4 {[%emt 0:00:59]} 25. a5 {[%emt 0:01:40]} Rab8 {[%emt 0:00:48]} 26. Qa3 {[%emt 0:00:55]} Rb3 {[%emt 0:03:28]} 27. Qa2 {[%emt 0:00:22]} Rcb8 {[%emt 0:00:29]} 28. Re2 {[%emt 0:05:08]} Qc5 {[%emt 0:01:27]} 29. Rd2 {[%emt 0:02:37]} Qb5 {[%emt 0:00:35]} 30. Rdd1 {[%emt 0:08:43]} Rxb2 {[%emt 0:01:27]} 31. Qa3 {[%emt 0:00:05]} Rb3 {[%emt 0:00:38]} 32. Qe7 {[%emt 0:01:14]} Rxc3 {[%emt 0:05:00]} 33. h3 {[%emt 0:02:06]} Rb3 {[%emt 0:00:29]} 34. Kh2 {[%emt 0:00:28]} d4 {[%emt 0:00:23]} 35. Qd6 {[%emt 0:00:48]} d3 {[%emt 0:01:48]} 36. Rac1 {[%emt 0:00:24]} Rc8 {[%emt 0:02:53]} 37. Qd4 {[%emt 0:02:10]} Qc5 {[%emt 0:05:02]} 38. Qf4 {[%emt 0:01:00]} Qd5 {[%emt 0:00:37]} 39. h4 {[%emt 0:00:49]} Ra3 {[%emt 0:01:09]} 40. h5 {[%emt 0:00:00]} Rxa5 {[%emt 0:00:00]} 41. hxg6 {[%emt 0:03:33]} hxg6 {[%emt 0:04:17]} 42. Kg3 {[%emt 0:00:56]} Ra3 {[%emt 0:01:18]} 43. Kh2 {[%emt 0:00:40]} a5 {[%emt 0:01:47]} 44. Qf6 {[%emt 0:01:26]} c3 {[%emt 0:01:32]} 45. Rh1 {[%emt 0:01:36]} d2 {[%emt 0:01:59]} 46. Rcf1 {[%emt 0:01:46]} Qd3 {[%emt 0:01:24]} 47. f3 {[%emt 0:03:31]} Qf5 {[%emt 0:02:08]} 48. Qe7 {[%emt 0:01:17]} Qxe5+ {[%emt 0:01:42]} 49. f4 {[%emt 0:01:11]} Qc5 {[%emt 0:00:20]} 50. Qf6 {[%emt 0:00:13]} c2 {[%emt 0:00:12]} 51. g3 {[%emt 0:04:36]} c1=Q {[%emt 0:00:27]} 52. f5 {[%emt 0:01:37]} d1=Q {[%emt 0:01:48]} 53. Rxd1 {[%emt 0:00:21]} Qf2+ {[%emt 0:00:10]} 54. Kh3 Qxg3# {[%emt 0:00:07] Rde1} 1/2-1/2

[Event "European School-ch 2019"]
[Site "Mamaia"]
[Date "2019.06.04"]
[Round "5.51"]
[White "Puia, Alexia-Teodora"]
[Black "Shuqja, Klean"]
[Result "0-1"]
[ECO "D80"]
[WhiteElo "1543"]
[BlackElo "1858"]
[Annotator "NA RC"]
[PlyCount "92"]
[EventDate "2019.05.31"]
[EventType "swiss"]
[EventCountry "ROU"]
[SourceTitle "playchess.com"]
[Source "ChessBase"]
[SourceQuality "1"]
[TimeControl "40/5400+30:1800+30"]

1. d4 {[%emt 0:00:00]} Nf6 {[%emt 0:00:00]} 2. c4 {[%emt 0:00:00]} g6 {[%emt 0:00:00]} 3. Nc3 {[%emt 0:00:00]} d5 {[%emt 0:00:00]} 4. Bg5 {[%emt 0:00:06]} Ne4 {[%emt 0:00:00]} 5. Bf4 {[%emt 0:00:06]} Nxc3 {[%emt 0:00:26]} 6. bxc3 {[%emt 0:00:05]} Bg7 {[%emt 0:00:26]} 7. Nf3 {[%emt 0:00:16]} c5 {[%emt 0:14:55]} 8. cxd5 {[%emt 0:00:47]} Qxd5 {[%emt 0:00:25]} 9. e3 {[%emt 0:00:22]} O-O {[%emt 0:00:32]} 10. Be2 {[%emt 0:00:22]} Nc6 {[%emt 0:00:43]} 11. O-O {[%emt 0:00:19] D91: Grünfeld: 4 Nf3 Bg7 5 Bg5} h6 {[%emt 0:13:11]} (11... cxd4 12. cxd4 Bf5 13. Qa4 Qa5 14. Qxa5 Nxa5 15. Rfc1 Rfc8 16. Rc7 Rxc7 17. Bxc7 Nc6 18. Nh4 Be6 19. Rb1 Bxa2 20. Rxb7 Bd5 {0-1 (61) Miljkovic,M (2524)-Vuckovic,B (2499) Belgrade 2014}) 12. Rc1 $146 {[%emt 0:01:49]} ({Predecessor:} 12. Bg3 b6 13. Qa4 Bb7 14. Qa3 cxd4 15. cxd4 Na5 16. Rad1 e6 17. Ne1 Rfc8 18. Bf3 Qd7 19. Bxb7 Qxb7 {0-1 (34) Wazeer Ahmad,K (1846)-Ramnathan,B (2164) Sonipat 2017}) 12... Qxa2 {[%emt 0:14:01]} 13. d5 {[%emt 0:11:18]} Rd8 {[%emt 0:07:20]} 14. e4 {[%emt 0:02:05]} e6 {[%emt 0:03:33]} 15. Bc7 {[%emt 0:05:23]} Rd7 {[%emt 0:03:14]} 16. d6 {[%emt 0:00:07]} c4 {[%emt 0:13:06]} 17. Nd2 {[%emt 0:06:44]} b5 {[%emt 0:01:23]} 18. f4 {[%emt 0:00:10]} Qa3 {[%emt 0:04:43]} 19. e5 {[%emt 0:05:23]} Qc5+ {[%emt 0:06:40]} 20. Kh1 {[%emt 0:00:17]} a5 {[%emt 0:04:24]} 21. Ne4 {[%emt 0:03:24]} Qe3 {[%emt 0:03:53]} 22. Bf3 {[%emt 0:02:39]} Bb7 {[%emt 0:04:46]} 23. Qe1 {[%emt 0:07:43]} Qxe1 {[%emt 0:02:12]} 24. Rfxe1 {[%emt 0:00:11]} Ne7 {[%emt 0:01:29]} 25. Rcd1 {[%emt 0:06:12]} Bxe4 {[%emt 0:00:22]} 26. Bxe4 {[%emt 0:00:39]} Nd5 {[%emt 0:00:39]} 27. Bxd5 {[%emt 0:00:06]} exd5 {[%emt 0:00:02]} 28. Rxd5 {[%emt 0:00:10]} b4 {[%emt 0:00:29]} 29. Rxa5 {[%emt 0:01:03]} Rxa5 {[%emt 0:00:06]} 30. Bxa5 {[%emt 0:00:04]} b3 {[%emt 0:01:21]} 31. Bc7 {[%emt 0:00:56]} g5 {[%emt 0:00:23]} 32. f5 {[%emt 0:00:32]} b2 {[%emt 0:00:42]} 33. f6 {[%emt 0:00:37]} Bf8 {[%emt 0:00:26]} 34. Rb1 {[%emt 0:00:05]} Kh7 {[%emt 0:00:19]} 35. Rxb2 {[%emt 0:00:06]} h5 {[%emt 0:00:39]} 36. Rb4 {[%emt 0:01:02]} Kg6 {[%emt 0:00:13]} 37. Rxc4 {[%emt 0:00:06]} Kf5 {[%emt 0:00:10]} 38. Rc5 {[%emt 0:00:26]} Ke4 {[%emt 0:01:01]} 39. Ra5 {[%emt 0:00:53]} g4 {[%emt 0:00:32]} 40. c4 {[%emt 0:00:00]} Bh6 {[%emt 0:00:00]} 41. e6 {[%emt 0:08:13]} fxe6 {[%emt 0:01:39]} 42. Rxh5 {[%emt 0:00:09]} Bf4 {[%emt 0:05:15]} 43. c5 {[%emt 0:05:08]} Rf7 {[%emt 0:05:40]} 44. Bd8 {[%emt 0:03:52]} Ra7 {[%emt 0:03:00]} 45. Kg1 {[%emt 0:05:04]} Be3+ {[%emt 0:04:23]} 46. Kf1 {[%emt 0:00:10]} Kd3 {[%emt 0:02:32]} 0-1

[Event "European School-ch 2019"]
[Site "Mamaia"]
[Date "2019.06.04"]
[Round "5.52"]
[White "Petrova, Elizaveta"]
[Black "Mamardashvili, Ana"]
[Result "1/2-1/2"]
[ECO "E11"]
[WhiteElo "1570"]
[BlackElo "1415"]
[Annotator "NA RC"]
[PlyCount "81"]
[EventDate "2019.05.31"]
[EventType "swiss"]
[EventCountry "ROU"]
[SourceTitle "playchess.com"]
[Source "ChessBase"]
[SourceQuality "1"]
[TimeControl "40/5400+30:1800+30"]

1. d4 {[%emt 0:00:00]} Nf6 {[%emt 0:00:00]} 2. c4 {[%emt 0:00:00]} e6 {[%emt 0:00:00]} 3. Nf3 {[%emt 0:00:00]} Bb4+ {[%emt 0:00:00]} 4. Bd2 {[%emt 0:00:00]} Be7 {[%emt 0:00:05]} 5. Nc3 {[%emt 0:00:20]} d5 {[%emt 0:00:11]} 6. e3 {[%emt 0:00:36]} O-O {[%emt 0:00:47]} 7. Be2 {[%emt 0:00:26]} Nbd7 {[%emt 0:01:16]} 8. O-O {[%emt 0:01:29]} c6 {[%emt 0:06:38]} 9. Qc2 {[%emt 0:03:44]} Qc7 {[%emt 0:04:19]} 10. e4 {[%emt 0:04:41]} e5 {[%emt 0:06:13]} 11. exd5 {[%emt 0:07:04]} cxd5 {[%emt 0:00:52]} 12. dxe5 {[%emt 0:07:19]} Nxe5 {[%emt 0:00:36]} 13. Nxe5 {[%emt 0:01:06]} Qxe5 {[%emt 0:00:09]} 14. cxd5 {[%emt 0:00:32]} Nxd5 {[%emt 0:01:26]} 15. Nxd5 {[%emt 0:03:45]} Qxd5 {[%emt 0:00:20]} 16. Bf3 {[%emt 0:00:47]} Qb5 {[%emt 0:05:10]} 17. Bc3 {[%emt 0:02:31]} Be6 {[%emt 0:05:59]} 18. Qe4 {[%emt 0:04:25]} Rab8 {[%emt 0:12:28]} 19. a4 {[%emt 0:07:33]} Qb6 {[%emt 0:08:46]} 20. Bd4 {[%emt 0:03:16]} Bc5 {[%emt 0:08:18]} 21. Bxc5 {[%emt 0:04:06]} Qxc5 {[%emt 0:00:07]} 22. b4 {[%emt 0:00:41]} Qg5 {[%emt 0:02:42]} 23. Rac1 {[%emt 0:05:03]} Bf5 {[%emt 0:06:40]} 24. Qd4 {[%emt 0:01:23]} b6 {[%emt 0:02:11]} 25. Rfd1 {[%emt 0:04:50]} Rfd8 {[%emt 0:04:39]} 26. Qe5 {[%emt 0:05:19]} Re8 {[%emt 0:04:31]} 27. Qb2 {[%emt 0:04:02]} Rbc8 {[%emt 0:06:49]} 28. g3 {[%emt 0:03:38]} Bg4 {[%emt 0:03:00]} 29. Bxg4 {[%emt 0:01:31]} Qxg4 {[%emt 0:00:10]} 30. Qd2 {[%emt 0:01:55]} h6 {[%emt 0:01:38]} 31. Rxc8 {[%emt 0:00:47]} Rxc8 {[%emt 0:00:43]} 32. Qd7 {[%emt 0:02:48]} Qxd7 {[%emt 0:04:46]} 33. Rxd7 {[%emt 0:00:07]} Rc4 {[%emt 0:00:06]} 34. Rxa7 {[%emt 0:00:25]} Rxb4 {[%emt 0:00:05]} 35. Kg2 {[%emt 0:01:25]} g6 {[%emt 0:01:11]} 36. h4 {[%emt 0:01:05]} Kg7 {[%emt 0:00:49]} 37. a5 {[%emt 0:01:53]} bxa5 {[%emt 0:00:26]} 38. Rxa5 {[%emt 0:00:05]} h5 {[%emt 0:01:58]} 39. Kf3 {[%emt 0:00:40]} Rc4 {[%emt 0:00:47]} 40. Ra6 {[%emt 0:00:00]} Rb4 {[%emt 0:00:00]} 41. Rc6 {[%emt 0:02:19]} 1/2-1/2

[Event "European School-ch 2019"]
[Site "Mamaia"]
[Date "2019.06.04"]
[Round "5.53"]
[White "Mikhailina, Elena"]
[Black "Obada, Ema"]
[Result "1/2-1/2"]
[ECO "B43"]
[WhiteElo "1699"]
[BlackElo "1889"]
[Annotator "NA RC"]
[PlyCount "86"]
[EventDate "2019.05.31"]
[EventType "swiss"]
[EventCountry "ROU"]
[SourceTitle "playchess.com"]
[Source "ChessBase"]
[SourceQuality "1"]
[TimeControl "40/5400+30:1800+30"]

1. e4 {[%emt 0:00:00]} c5 {[%emt 0:00:00]} 2. Ne2 {[%emt 0:00:00]} e6 {[%emt 0:00:35]} 3. d4 {[%emt 0:00:00]} cxd4 {[%emt 0:00:05]} 4. Nxd4 {[%emt 0:00:00]} a6 {[%emt 0:00:10]} 5. Nc3 {[%emt 0:00:00]} b5 {[%emt 0:00:10]} 6. Bd3 {[%emt 0:00:00]} Qb6 {[%emt 0:00:10]} 7. Nb3 {[%emt 0:00:24]} Qc7 {[%emt 0:00:08]} 8. O-O {[%emt 0:01:01]} Nc6 {[%emt 0:00:45] B43: Sicilian: Kan Variation: 5 Nc3} (8... Bb7 9. Qe2 Nf6 10. e5 Nd5 11. Nxd5 Bxd5 12. a4 b4 13. Re1 h6 14. Bf4 Be7 15. Rad1 Bc6 16. Nd4 Bb7 17. Nf5 {1-0 (51) Najer,E (2663)-Ponizil,C (2494) Czech Republic 2019}) 9. a4 {[%emt 0:06:40]} b4 {[%emt 0:01:06]} 10. Na2 $146 {[%emt 0:00:15]} ({Predecessor:} 10. Ne2 Nf6 11. f4 Be7 12. Kh1 a5 13. Ned4 Nxd4 14. Nxd4 Bb7 15. Qe2 g6 16. Bd2 {0-1 (36) Kiesel,H (2090)-Simantsev,M (2477) Lueneburg 2017}) 10... Nf6 {[%emt 0:00:42]} 11. Re1 {[%emt 0:10:35]} Bd6 {[%emt 0:14:44]} 12. h3 {[%emt 0:03:37]} O-O {[%emt 0:01:34]} 13. c3 {[%emt 0:02:48]} bxc3 {[%emt 0:10:40]} 14. Nxc3 {[%emt 0:00:41]} Rb8 {[%emt 0:03:04]} 15. Nd2 {[%emt 0:25:26]} Ne5 {[%emt 0:08:49]} 16. Bc2 {[%emt 0:05:34]} Bc5 {[%emt 0:06:03]} 17. Nf3 {[%emt 0:03:45]} d6 {[%emt 0:00:41]} 18. Nxe5 {[%emt 0:06:38]} dxe5 {[%emt 0:01:13]} 19. Rb1 {[%emt 0:00:18]} Bb7 {[%emt 0:13:49]} 20. Qf3 {[%emt 0:04:59]} Rfd8 {[%emt 0:03:01]} 21. Rd1 {[%emt 0:02:05]} Rxd1+ {[%emt 0:01:01]} 22. Qxd1 {[%emt 0:00:31]} Bd4 {[%emt 0:01:11]} 23. Qf3 {[%emt 0:01:48]} Ba8 {[%emt 0:01:48]} 24. Bd2 {[%emt 0:01:17]} Qc5 {[%emt 0:04:00]} 25. Be1 {[%emt 0:05:02]} Ne8 {[%emt 0:02:52]} 26. Qg4 {[%emt 0:05:09]} Nd6 {[%emt 0:00:37]} 27. Bd3 {[%emt 0:00:44]} Nc4 {[%emt 0:01:32]} 28. Qe2 {[%emt 0:01:28]} Nd6 {[%emt 0:02:15]} 29. Qg4 {[%emt 0:00:09]} h6 {[%emt 0:05:01]} 30. Kf1 {[%emt 0:02:05]} Bc6 {[%emt 0:00:44]} 31. Kg1 {[%emt 0:01:44]} Rb3 {[%emt 0:05:57]} 32. Bc2 {[%emt 0:01:51]} Rb8 {[%emt 0:01:42]} 33. Bd3 {[%emt 0:00:05]} Rb3 {[%emt 0:00:29]} 34. Bc2 {[%emt 0:00:04]} Rb4 {[%emt 0:01:03]} 35. Qe2 {[%emt 0:03:50]} Bxc3 {[%emt 0:00:46]} 36. Bxc3 {[%emt 0:00:31]} Rc4 {[%emt 0:00:35]} 37. Rd1 {[%emt 0:01:40]} Nxe4 {[%emt 0:02:42]} 38. Rd8+ {[%emt 0:02:47]} Kh7 {[%emt 0:00:07]} 39. b4 {[%emt 0:02:57]} Qb6 {[%emt 0:00:21]} 40. Qxc4 {[%emt 0:00:00]} Qxf2+ {[%emt 0:00:00]} 41. Kh2 {[%emt 0:05:42]} Qf4+ {[%emt 0:08:16]} 42. Kh1 $16 {[%emt 0:03:07]} Qc1+ {[%emt 0:00:29]} 43. Kh2 {[%emt 0:00:06]} Qf4+ {[%emt 0:00:08]} 1/2-1/2

[Event "European School-ch 2019"]
[Site "Mamaia"]
[Date "2019.06.04"]
[Round "5.54"]
[White "Ruzic, Pia Marie"]
[Black "Zyapaeva, Polina"]
[Result "1/2-1/2"]
[ECO "A35"]
[WhiteElo "1917"]
[BlackElo "1806"]
[Annotator "NA RC"]
[PlyCount "56"]
[EventDate "2019.05.31"]
[EventType "swiss"]
[EventCountry "ROU"]
[SourceTitle "playchess.com"]
[Source "ChessBase"]
[SourceQuality "1"]
[TimeControl "40/5400+30:1800+30"]

1. c4 {[%emt 0:00:00]} c5 {[%emt 0:00:00]} 2. Nc3 {[%emt 0:00:00]} Nc6 {[%emt 0:00:00]} 3. Nf3 {[%emt 0:00:00]} a6 {[%emt 0:04:11]} 4. g3 {[%emt 0:00:00]} g6 {[%emt 0:02:39]} 5. Bg2 {[%emt 0:00:56]} Bg7 {[%emt 0:00:09]} 6. O-O {[%emt 0:00:13]} e5 {[%emt 0:01:27]} 7. d3 {[%emt 0:02:59]} Nge7 {[%emt 0:02:00]} 8. Ne4 {[%emt 0:03:50]} d6 {[%emt 0:00:12]} 9. Bg5 {[%emt 0:00:13]} f5 {[%emt 0:07:25]} 10. Nf6+ {[%emt 0:02:12]} Kf7 {[%emt 0:01:32]} 11. Nd5 {[%emt 0:02:56]} h6 {[%emt 0:01:51]} 12. Bxe7 {[%emt 0:00:21]} Nxe7 {[%emt 0:00:10]} 13. Ne1 {[%emt 0:00:19]} Rf8 {[%emt 0:04:59]} 14. Nxe7 {[%emt 0:00:43]} Qxe7 {[%emt 0:00:10]} 15. Nc2 {[%emt 0:00:07]} Kg8 {[%emt 0:04:04]} 16. Ne3 {[%emt 0:00:14]} Rb8 {[%emt 0:03:56]} 17. Nd5 {[%emt 0:05:18]} Qd8 {[%emt 0:00:10]} 18. a4 {[%emt 0:09:18]} b6 {[%emt 0:01:05]} 19. Qd2 {[%emt 0:00:45]} Kh7 {[%emt 0:05:52]} 20. Rab1 {[%emt 0:12:29]} Bd7 {[%emt 0:02:42]} 21. b3 {[%emt 0:03:42]} a5 {[%emt 0:05:38]} 22. Rbe1 {[%emt 0:01:34]} Be6 {[%emt 0:05:32]} 23. Nc3 {[%emt 0:00:10]} f4 {[%emt 0:01:51]} 24. Bd5 {[%emt 0:01:45]} Bh3 {[%emt 0:02:16]} 25. Bg2 {[%emt 0:00:08]} Be6 {[%emt 0:03:36]} 26. Bd5 {[%emt 0:04:06]} Bh3 {[%emt 0:01:46]} 27. Bg2 {[%emt 0:00:08]} Be6 {[%emt 0:00:17]} 28. Bd5 {[%emt 0:00:24]} Bh3 {[%emt 0:02:37]} 1/2-1/2